[Event "Titled Tuesday Blitz May 10 Early 2022"]
[White "Leiva, Gianmarco"]
[Black "Rahman, Adel"]
[WhiteFideId "3804399"]
[BlackFideId "14204177"]
[WhiteElo "2323"]
[BlackElo "2175"]
[Result "1-0"]
[Round "03"]
[TimeControl "180+1"]
[Date "2022.05.11"]
[WhiteClock "0:00:06"]
[BlackClock "0:01:16"]

1. Nf3 {[%clk 0:00:35]}  Nf6 {[%clk 0:02:57]} 2. g3 {[%clk 0:00:35]}  g6 {[%clk 0:02:57]} 3. Bg2 {[%clk 0:00:35]}  Bg7 {[%clk 0:02:58]} 4. O-O {[%clk 0:00:36]}  O-O {[%clk 0:02:58]} 5. d4 {[%clk 0:00:37]}  d6 {[%clk 0:02:57]} 6. c4 {[%clk 0:00:37]}  c5 {[%clk 0:02:58]} 7. d5 {[%clk 0:00:37]}  e6 {[%clk 0:02:55]} 8. Nc3 {[%clk 0:00:37]}  Re8 {[%clk 0:02:55]} 9. dxe6 {[%clk 0:00:35]}  Bxe6 {[%clk 0:02:54]} 10. Ng5 {[%clk 0:00:36]}  Bc8 {[%clk 0:02:41]} 11. Bf4 {[%clk 0:00:34]}  h6 {[%clk 0:02:39]} 12. Nge4 {[%clk 0:00:34]}  Nxe4 {[%clk 0:02:34]} 13. Nxe4 {[%clk 0:00:35]}  Nc6 {[%clk 0:02:24]} 14. Nxd6 {[%clk 0:00:32]}  Re6 {[%clk 0:02:25]} 15. Nxc8 {[%clk 0:00:26]}  Qxc8 {[%clk 0:02:24]} 16. Bh3 {[%clk 0:00:20]}  f5 {[%clk 0:02:20]} 17. Bg2 {[%clk 0:00:14]}  g5 {[%clk 0:02:06]} 18. Be3 {[%clk 0:00:14]}  Kh8 {[%clk 0:02:03]} 19. Bxc5 {[%clk 0:00:14]}  Bxb2 {[%clk 0:02:02]} 20. Rb1 {[%clk 0:00:13]}  Bg7 {[%clk 0:02:01]} 21. e4 {[%clk 0:00:08]}  f4 {[%clk 0:02:00]} 22. Bh3 {[%clk 0:00:07]}  Ne5 {[%clk 0:01:58]} 23. Bxe6 {[%clk 0:00:08]}  Qxe6 {[%clk 0:01:57]} 24. Qh5 {[%clk 0:00:05]}  f3 {[%clk 0:01:54]} 25. Rbd1 {[%clk 0:00:04]}  Qg6 {[%clk 0:01:47]} 26. Qxg6 {[%clk 0:00:04]}  Nxg6 {[%clk 0:01:48]} 27. Bd4 {[%clk 0:00:03]}  Ne5 {[%clk 0:01:43]} 28. Bxe5 {[%clk 0:00:04]}  Bxe5 {[%clk 0:01:43]} 29. Rd5 {[%clk 0:00:03]}  Re8 {[%clk 0:01:41]} 30. h3 {[%clk 0:00:03]}  Bc7 {[%clk 0:01:40]} 31. Rf5 {[%clk 0:00:03]}  Rxe4 {[%clk 0:01:37]} 32. Rc1 {[%clk 0:00:03]}  g4 {[%clk 0:01:35]} 33. hxg4 {[%clk 0:00:03]}  Re2 {[%clk 0:01:34]} 34. Rxf3 {[%clk 0:00:04]}  Rxa2 {[%clk 0:01:34]} 35. Rf7 {[%clk 0:00:03]}  Bb6 {[%clk 0:01:34]} 36. c5 {[%clk 0:00:04]}  Ba5 {[%clk 0:01:31]} 37. Rxb7 {[%clk 0:00:04]}  Bd2 {[%clk 0:01:26]} 38. Rd1 {[%clk 0:00:04]}  a5 {[%clk 0:01:25]} 39. c6 {[%clk 0:00:05]}  Rc2 {[%clk 0:01:25]} 40. c7 {[%clk 0:00:05]}  a4 {[%clk 0:01:21]} 41. Rxd2 {[%clk 0:00:05]}  Rxd2 {[%clk 0:01:19]} 42. c8=Q+ {[%clk 0:00:05]}  Rd8 {[%clk 0:01:16]} 43. Qxd8# {[%clk 0:00:06]} 1-0


[Site "https://www.chess.com"]

[Event "Titled Tuesday Blitz May 10 Early 2022"]
[White "Maghsoodloo, Parham"]
[Black "Migot, Tangi"]
[WhiteFideId "12539929"]
[BlackFideId "662445"]
[WhiteElo "2630"]
[BlackElo "2513"]
[Result "1-0"]
[Round "03"]
[TimeControl "180+1"]
[Date "2022.05.11"]
[WhiteClock "0:00:18"]
[BlackClock "0:00:16"]

1. d4 {[%clk 0:02:52]}  Nf6 {[%clk 0:03:00]} 2. c4 {[%clk 0:02:52]}  g6 {[%clk 0:03:01]} 3. Nf3 {[%clk 0:02:52]}  Bg7 {[%clk 0:03:00]} 4. g3 {[%clk 0:02:53]}  d5 {[%clk 0:03:00]} 5. Bg2 {[%clk 0:02:53]}  dxc4 {[%clk 0:03:00]} 6. O-O {[%clk 0:02:53]}  O-O {[%clk 0:03:00]} 7. Na3 {[%clk 0:02:53]}  c3 {[%clk 0:03:00]} 8. bxc3 {[%clk 0:02:54]}  c5 {[%clk 0:03:00]} 9. Bb2 {[%clk 0:02:54]}  Nc6 {[%clk 0:03:00]} 10. e3 {[%clk 0:02:54]}  Bf5 {[%clk 0:02:57]} 11. h3 {[%clk 0:02:54]}  Qb6 {[%clk 0:02:56]} 12. Qe2 {[%clk 0:02:54]}  Na5 {[%clk 0:02:52]} 13. Ne5 {[%clk 0:02:50]}  Be4 {[%clk 0:02:49]} 14. Bxe4 {[%clk 0:02:50]}  Nxe4 {[%clk 0:02:49]} 15. Nd7 {[%clk 0:02:50]}  Qe6 {[%clk 0:02:44]} 16. Nxf8 {[%clk 0:02:50]}  Qxh3 {[%clk 0:02:41]} 17. Rad1 {[%clk 0:02:42]}  Rxf8 {[%clk 0:02:35]} 18. Qf3 {[%clk 0:02:42]}  Ng5 {[%clk 0:02:02]} 19. Qg2 {[%clk 0:02:42]}  Qe6 {[%clk 0:02:00]} 20. d5 {[%clk 0:02:37]}  Qb6 {[%clk 0:01:59]} 21. Bc1 {[%clk 0:02:29]}  f5 {[%clk 0:01:58]} 22. d6 {[%clk 0:02:22]}  exd6 {[%clk 0:01:54]} 23. Qd5+ {[%clk 0:02:21]}  Nf7 {[%clk 0:01:54]} 24. c4 {[%clk 0:02:02]}  Nc6 {[%clk 0:01:51]} 25. Nb5 {[%clk 0:01:59]}  Rd8 {[%clk 0:01:37]} 26. e4 {[%clk 0:01:59]}  a6 {[%clk 0:01:31]} 27. Bg5 {[%clk 0:01:59]}  axb5 {[%clk 0:01:27]} 28. Bxd8 {[%clk 0:01:59]}  Qxd8 {[%clk 0:01:26]} 29. cxb5 {[%clk 0:01:56]}  Nd4 {[%clk 0:01:15]} 30. Qxb7 {[%clk 0:01:55]}  f4 {[%clk 0:01:11]} 31. b6 {[%clk 0:01:49]}  Qg5 {[%clk 0:01:03]} 32. Qc8+ {[%clk 0:01:45]}  Bf8 {[%clk 0:01:02]} 33. Rxd4 {[%clk 0:01:28]}  cxd4 {[%clk 0:01:01]} 34. b7 {[%clk 0:01:29]}  fxg3 {[%clk 0:00:59]} 35. b8=Q {[%clk 0:01:27]}  gxf2+ {[%clk 0:00:55]} 36. Kxf2 {[%clk 0:01:16]}  Qe3+ {[%clk 0:00:54]} 37. Kg2 {[%clk 0:01:16]}  Qxe4+ {[%clk 0:00:55]} 38. Rf3 {[%clk 0:01:05]}  Qe2+ {[%clk 0:00:54]} 39. Rf2 {[%clk 0:01:06]}  Qe4+ {[%clk 0:00:54]} 40. Kg3 {[%clk 0:00:49]}  Qe3+ {[%clk 0:00:45]} 41. Kg2 {[%clk 0:00:47]}  Qe4+ {[%clk 0:00:45]} 42. Kf1 {[%clk 0:00:27]}  Qh1+ {[%clk 0:00:24]} 43. Ke2 {[%clk 0:00:27]}  d3+ {[%clk 0:00:24]} 44. Kd2 {[%clk 0:00:23]}  Qh6+ {[%clk 0:00:23]} 45. Kxd3 {[%clk 0:00:18]}  Ne5+ {[%clk 0:00:23]} 46. Kc2 {[%clk 0:00:19]}  Nd7 {[%clk 0:00:16]} 47. Qxd7 {[%clk 0:00:18]} 1-0


[Site "https://www.chess.com"]

[Event "Titled Tuesday Blitz May 10 Early 2022"]
[White "Mikhnenko, Alexander"]
[Black "Fromm, Marius"]
[WhiteFideId "34143014"]
[BlackFideId "12993190"]
[WhiteElo "2117"]
[BlackElo "2567"]
[Result "0-1"]
[Round "03"]
[TimeControl "180+1"]
[Date "2022.05.11"]
[WhiteClock "0:00:16"]
[BlackClock "0:00:39"]

1. e4 {[%clk 0:02:59]}  c5 {[%clk 0:03:00]} 2. Nf3 {[%clk 0:02:59]}  d6 {[%clk 0:02:45]} 3. d4 {[%clk 0:02:55]}  cxd4 {[%clk 0:02:46]} 4. Nxd4 {[%clk 0:02:56]}  Nf6 {[%clk 0:02:46]} 5. Nc3 {[%clk 0:02:55]}  a6 {[%clk 0:02:47]} 6. h3 {[%clk 0:02:53]}  e5 {[%clk 0:02:47]} 7. Nde2 {[%clk 0:02:52]}  h5 {[%clk 0:02:47]} 8. Bg5 {[%clk 0:02:51]}  Be6 {[%clk 0:02:48]} 9. g3 {[%clk 0:02:50]}  Nbd7 {[%clk 0:02:47]} 10. Bg2 {[%clk 0:02:49]}  Be7 {[%clk 0:02:48]} 11. O-O {[%clk 0:02:49]}  b5 {[%clk 0:02:46]} 12. f4 {[%clk 0:02:46]}  b4 {[%clk 0:02:34]} 13. Nb1 {[%clk 0:02:31]}  Rc8 {[%clk 0:02:20]} 14. c3 {[%clk 0:02:24]}  Qb6+ {[%clk 0:02:18]} 15. Kh1 {[%clk 0:02:23]}  Ng4 {[%clk 0:02:13]} 16. f5 {[%clk 0:02:19]}  Bxg5 {[%clk 0:02:07]} 17. fxe6 {[%clk 0:02:15]}  fxe6 {[%clk 0:02:08]} 18. hxg4 {[%clk 0:01:19]}  hxg4+ {[%clk 0:02:01]} 19. Bh3 {[%clk 0:01:19]}  Rxh3+ {[%clk 0:01:58]} 20. Kg2 {[%clk 0:01:18]}  Nf6 {[%clk 0:01:53]} 21. Rxf6 {[%clk 0:01:03]}  gxf6 {[%clk 0:01:50]} 22. Ng1 {[%clk 0:00:59]}  bxc3 {[%clk 0:01:00]} 23. Nxh3 {[%clk 0:00:32]}  gxh3+ {[%clk 0:01:01]} 24. Kxh3 {[%clk 0:00:29]}  cxb2 {[%clk 0:00:49]} 25. Qh5+ {[%clk 0:00:28]}  Kd7 {[%clk 0:00:46]} 26. Qf7+ {[%clk 0:00:25]}  Kc6 {[%clk 0:00:46]} 27. Qxe6 {[%clk 0:00:24]}  bxa1=Q {[%clk 0:00:42]} 28. Qxc8+ {[%clk 0:00:22]}  Qc7 {[%clk 0:00:41]} 29. Qxa6+ {[%clk 0:00:21]}  Kd7 {[%clk 0:00:42]} 30. Qb5+ {[%clk 0:00:20]}  Ke7 {[%clk 0:00:42]} 31. Qb4 {[%clk 0:00:16]}  Qd7+ {[%clk 0:00:39]} 0-1


[Site "https://www.chess.com"]

[Event "Titled Tuesday Blitz May 10 Early 2022"]
[White "Miszler, Levente"]
[Black "Sokolovsky, Yahli"]
[WhiteFideId "763276"]
[BlackFideId "2820242"]
[WhiteElo "1966"]
[BlackElo "1770"]
[Result "0-1"]
[Round "03"]
[TimeControl "180+1"]
[Date "2022.05.11"]
[WhiteClock "0:00:19"]
[BlackClock "0:00:09"]

1. Nf3 {[%clk 0:03:00]}  g6 {[%clk 0:02:58]} 2. c4 {[%clk 0:02:55]}  Bg7 {[%clk 0:02:58]} 3. g3 {[%clk 0:02:56]}  e6 {[%clk 0:02:55]} 4. Bg2 {[%clk 0:02:56]}  Ne7 {[%clk 0:02:56]} 5. O-O {[%clk 0:02:55]}  O-O {[%clk 0:02:56]} 6. Qc2 {[%clk 0:02:42]}  d5 {[%clk 0:02:56]} 7. d3 {[%clk 0:02:42]}  Nbc6 {[%clk 0:02:56]} 8. a3 {[%clk 0:02:41]}  a5 {[%clk 0:02:51]} 9. Nbd2 {[%clk 0:02:41]}  a4 {[%clk 0:02:41]} 10. Rb1 {[%clk 0:02:38]}  e5 {[%clk 0:02:29]} 11. cxd5 {[%clk 0:02:31]}  Nxd5 {[%clk 0:02:29]} 12. Nc4 {[%clk 0:02:18]}  Bg4 {[%clk 0:02:25]} 13. h3 {[%clk 0:02:08]}  Bxf3 {[%clk 0:02:19]} 14. Bxf3 {[%clk 0:02:08]}  Nd4 {[%clk 0:02:19]} 15. Qd1 {[%clk 0:02:06]}  Nxf3+ {[%clk 0:02:18]} 16. exf3 {[%clk 0:02:06]}  Qd7 {[%clk 0:02:14]} 17. Kg2 {[%clk 0:02:03]}  b5 {[%clk 0:02:05]} 18. Ne3 {[%clk 0:02:03]}  Rad8 {[%clk 0:02:05]} 19. Qc2 {[%clk 0:02:02]}  Nb6 {[%clk 0:01:49]} 20. Rd1 {[%clk 0:01:58]}  Rfe8 {[%clk 0:01:40]} 21. Bd2 {[%clk 0:01:56]}  f5 {[%clk 0:01:15]} 22. Bb4 {[%clk 0:01:49]}  f4 {[%clk 0:01:10]} 23. Nf1 {[%clk 0:01:41]}  Rc8 {[%clk 0:01:00]} 24. Bc5 {[%clk 0:01:32]}  Nd5 {[%clk 0:00:36]} 25. g4 {[%clk 0:01:19]}  Re6 {[%clk 0:00:16]} 26. Nd2 {[%clk 0:01:11]}  Rc6 {[%clk 0:00:16]} 27. Ne4 {[%clk 0:01:11]}  Bf8 {[%clk 0:00:16]} 28. Rbc1 {[%clk 0:01:09]}  Bxc5 {[%clk 0:00:16]} 29. Nxc5 {[%clk 0:01:09]}  Qe7 {[%clk 0:00:16]} 30. d4 {[%clk 0:01:06]}  exd4 {[%clk 0:00:10]} 31. Rxd4 {[%clk 0:01:07]}  Nb6 {[%clk 0:00:07]} 32. Re4 {[%clk 0:01:03]}  Qf8 {[%clk 0:00:07]} 33. Qc3 {[%clk 0:00:54]}  Nd7 {[%clk 0:00:03]} 34. Qb4 {[%clk 0:00:30]}  Rxc5 {[%clk 0:00:02]} 35. Rd1 {[%clk 0:00:30]}  Rd8 {[%clk 0:00:02]} 36. Red4 {[%clk 0:00:29]}  Rc6 {[%clk 0:00:01]} 37. Qxf8+ {[%clk 0:00:23]}  Kxf8 {[%clk 0:00:02]} 38. Rxd7 {[%clk 0:00:24]}  Rxd7 {[%clk 0:00:03]} 39. Rxd7 {[%clk 0:00:24]}  Rc2 {[%clk 0:00:04]} 40. Rxh7 {[%clk 0:00:21]}  c5 {[%clk 0:00:04]} 41. Rb7 {[%clk 0:00:21]}  Rxb2 {[%clk 0:00:05]} 42. h4 {[%clk 0:00:21]}  b4 {[%clk 0:00:05]} 43. axb4 {[%clk 0:00:19]}  cxb4 {[%clk 0:00:06]} 44. Ra7 {[%clk 0:00:20]}  a3 {[%clk 0:00:06]} 45. h5 {[%clk 0:00:21]}  gxh5 {[%clk 0:00:07]} 46. gxh5 {[%clk 0:00:22]}  a2 {[%clk 0:00:07]} 47. h6 {[%clk 0:00:21]}  Kg8 {[%clk 0:00:08]} 48. Kh3 {[%clk 0:00:19]}  b3 {[%clk 0:00:09]} 49. Kg4 {[%clk 0:00:20]}  Rb1 {[%clk 0:00:09]} 50. Kf5 {[%clk 0:00:19]}  a1=Q {[%clk 0:00:10]} 51. Rb7 {[%clk 0:00:19]}  Qa5+ {[%clk 0:00:09]} 0-1


[Site "https://www.chess.com"]

[Event "Titled Tuesday Blitz May 10 Early 2022"]
[White "Morefield, Jason"]
[Black "Xu, Yi"]
[WhiteFideId "30920825"]
[BlackFideId "8605564"]
[WhiteElo "2171"]
[BlackElo "2471"]
[Result "0-1"]
[Round "03"]
[TimeControl "180+1"]
[Date "2022.05.10"]
[WhiteClock "0:00:01"]
[BlackClock "0:00:12"]

1. d4 {[%clk 0:03:00]}  Nf6 {[%clk 0:02:59]} 2. c4 {[%clk 0:02:59]}  e6 {[%clk 0:02:59]} 3. Nf3 {[%clk 0:02:59]}  d5 {[%clk 0:02:59]} 4. Nc3 {[%clk 0:02:58]}  Bb4 {[%clk 0:02:58]} 5. cxd5 {[%clk 0:02:58]}  exd5 {[%clk 0:02:57]} 6. Bg5 {[%clk 0:02:58]}  h6 {[%clk 0:02:57]} 7. Bh4 {[%clk 0:02:58]}  Bf5 {[%clk 0:02:56]} 8. Qb3 {[%clk 0:02:54]}  Bxc3+ {[%clk 0:02:53]} 9. bxc3 {[%clk 0:02:44]}  Nbd7 {[%clk 0:02:49]} 10. e3 {[%clk 0:02:41]}  O-O {[%clk 0:02:49]} 11. Be2 {[%clk 0:02:36]}  b5 {[%clk 0:02:46]} 12. Nd2 {[%clk 0:02:19]}  c6 {[%clk 0:02:42]} 13. O-O {[%clk 0:02:17]}  g5 {[%clk 0:02:32]} 14. Bg3 {[%clk 0:02:16]}  Nb6 {[%clk 0:02:32]} 15. f3 {[%clk 0:01:37]}  Bg6 {[%clk 0:02:10]} 16. Rae1 {[%clk 0:01:32]}  Re8 {[%clk 0:02:07]} 17. e4 {[%clk 0:01:19]}  dxe4 {[%clk 0:02:00]} 18. fxe4 {[%clk 0:01:20]}  Nxe4 {[%clk 0:01:54]} 19. Nxe4 {[%clk 0:01:11]}  Rxe4 {[%clk 0:01:53]} 20. Be5 {[%clk 0:00:46]}  Qd5 {[%clk 0:01:38]} 21. Bf3 {[%clk 0:00:26]}  Qxb3 {[%clk 0:01:36]} 22. axb3 {[%clk 0:00:27]}  Rxe1 {[%clk 0:01:36]} 23. Rxe1 {[%clk 0:00:28]}  Rc8 {[%clk 0:01:23]} 24. Ra1 {[%clk 0:00:27]}  Bc2 {[%clk 0:01:18]} 25. Rxa7 {[%clk 0:00:22]}  Bxb3 {[%clk 0:01:18]} 26. Bg4 {[%clk 0:00:20]}  Ra8 {[%clk 0:01:09]} 27. Rc7 {[%clk 0:00:16]}  Bd5 {[%clk 0:01:06]} 28. Bf3 {[%clk 0:00:12]}  Bxf3 {[%clk 0:00:57]} 29. gxf3 {[%clk 0:00:12]}  Rc8 {[%clk 0:00:57]} 30. Rb7 {[%clk 0:00:11]}  Nd5 {[%clk 0:00:57]} 31. Kf2 {[%clk 0:00:05]}  Nxc3 {[%clk 0:00:57]} 32. h4 {[%clk 0:00:06]}  Nd5 {[%clk 0:00:56]} 33. hxg5 {[%clk 0:00:05]}  hxg5 {[%clk 0:00:56]} 34. Bd6 {[%clk 0:00:05]}  Kg7 {[%clk 0:00:55]} 35. Kg3 {[%clk 0:00:05]}  Kg6 {[%clk 0:00:55]} 36. Ra7 {[%clk 0:00:05]}  Ne3 {[%clk 0:00:47]} 37. Bc5 {[%clk 0:00:05]}  Nf5+ {[%clk 0:00:32]} 38. Kf2 {[%clk 0:00:04]}  Rd8 {[%clk 0:00:31]} 39. Ra6 {[%clk 0:00:04]}  Nxd4 {[%clk 0:00:28]} 40. Bxd4 {[%clk 0:00:05]}  Rxd4 {[%clk 0:00:29]} 41. Rxc6+ {[%clk 0:00:05]}  f6 {[%clk 0:00:29]} 42. Rb6 {[%clk 0:00:06]}  Rb4 {[%clk 0:00:28]} 43. Kg3 {[%clk 0:00:06]}  Kf5 {[%clk 0:00:28]} 44. Rb8 {[%clk 0:00:06]}  Rb3 {[%clk 0:00:27]} 45. Rg8 {[%clk 0:00:04]}  b4 {[%clk 0:00:25]} 46. Rb8 {[%clk 0:00:04]}  Rb1 {[%clk 0:00:20]} 47. Rb5+ {[%clk 0:00:04]}  Kg6 {[%clk 0:00:21]} 48. f4 {[%clk 0:00:04]}  Rb3+ {[%clk 0:00:15]} 49. Kg2 {[%clk 0:00:01]}  gxf4 {[%clk 0:00:12]} 0-1


[Site "https://www.chess.com"]

[Event "Titled Tuesday Blitz May 10 Early 2022"]
[White "Mortazavi, Ali"]
[Black "Barp, Alberto"]
[WhiteFideId "401323"]
[BlackFideId "872555"]
[WhiteElo "2339"]
[BlackElo "2229"]
[Result "0-1"]
[Round "03"]
[TimeControl "180+1"]
[Date "2022.05.11"]
[WhiteClock "0:00:16"]
[BlackClock "0:00:33"]

1. Nf3 {[%clk 0:03:00]}  c5 {[%clk 0:02:55]} 2. e4 {[%clk 0:02:59]}  a6 {[%clk 0:02:55]} 3. Nc3 {[%clk 0:02:58]}  b5 {[%clk 0:02:55]} 4. g3 {[%clk 0:02:59]}  Bb7 {[%clk 0:02:55]} 5. d3 {[%clk 0:02:58]}  e6 {[%clk 0:02:54]} 6. Bg2 {[%clk 0:02:58]}  d6 {[%clk 0:02:45]} 7. O-O {[%clk 0:02:58]}  Nd7 {[%clk 0:02:43]} 8. Re1 {[%clk 0:02:58]}  Ne7 {[%clk 0:02:43]} 9. a4 {[%clk 0:02:45]}  b4 {[%clk 0:02:42]} 10. Nb1 {[%clk 0:02:46]}  g6 {[%clk 0:02:42]} 11. Nbd2 {[%clk 0:02:37]}  Bg7 {[%clk 0:02:40]} 12. Nc4 {[%clk 0:02:37]}  Qc7 {[%clk 0:02:38]} 13. Bf4 {[%clk 0:02:11]}  e5 {[%clk 0:02:35]} 14. Bg5 {[%clk 0:02:10]}  f6 {[%clk 0:02:25]} 15. Bd2 {[%clk 0:02:10]}  O-O {[%clk 0:02:24]} 16. Bh3 {[%clk 0:02:05]}  Rad8 {[%clk 0:02:16]} 17. a5 {[%clk 0:01:58]}  d5 {[%clk 0:02:14]} 18. exd5 {[%clk 0:01:51]}  Nxd5 {[%clk 0:02:12]} 19. Bg2 {[%clk 0:01:38]}  Rfe8 {[%clk 0:02:10]} 20. h4 {[%clk 0:01:37]}  h5 {[%clk 0:02:05]} 21. c3 {[%clk 0:01:33]}  bxc3 {[%clk 0:02:03]} 22. bxc3 {[%clk 0:01:33]}  Nf8 {[%clk 0:02:03]} 23. Rb1 {[%clk 0:01:33]}  Bc6 {[%clk 0:01:56]} 24. Qb3 {[%clk 0:01:26]}  Kh7 {[%clk 0:01:51]} 25. Qc2 {[%clk 0:01:24]}  Ne6 {[%clk 0:01:44]} 26. Nh2 {[%clk 0:01:16]}  Ne7 {[%clk 0:01:33]} 27. Rb6 {[%clk 0:01:13]}  Bxg2 {[%clk 0:01:32]} 28. Kxg2 {[%clk 0:01:13]}  Nd5 {[%clk 0:01:29]} 29. Rbb1 {[%clk 0:00:58]}  Qc6 {[%clk 0:01:29]} 30. Kg1 {[%clk 0:00:58]}  Rd7 {[%clk 0:01:29]} 31. Nb6 {[%clk 0:00:49]}  Rdd8 {[%clk 0:01:22]} 32. Qa2 {[%clk 0:00:38]}  Ndc7 {[%clk 0:01:18]} 33. Qc4 {[%clk 0:00:31]}  Qd6 {[%clk 0:01:08]} 34. Re3 {[%clk 0:00:28]}  Bh6 {[%clk 0:01:07]} 35. Rf3 {[%clk 0:00:27]}  Bxd2 {[%clk 0:01:04]} 36. Rxf6 {[%clk 0:00:27]}  Kg7 {[%clk 0:00:57]} 37. Rf3 {[%clk 0:00:25]}  Bh6 {[%clk 0:00:55]} 38. g4 {[%clk 0:00:25]}  Bf4 {[%clk 0:00:54]} 39. gxh5 {[%clk 0:00:24]}  gxh5 {[%clk 0:00:55]} 40. Kh1 {[%clk 0:00:24]}  Qc6 {[%clk 0:00:52]} 41. Rg1+ {[%clk 0:00:24]}  Kh8 {[%clk 0:00:51]} 42. Rg2 {[%clk 0:00:20]}  Rg8 {[%clk 0:00:42]} 43. Qa2 {[%clk 0:00:16]}  Rxg2 {[%clk 0:00:40]} 44. Kxg2 {[%clk 0:00:17]}  Bxh2 {[%clk 0:00:36]} 45. Qe2 {[%clk 0:00:17]}  Nf4+ {[%clk 0:00:33]} 46. Kxh2 {[%clk 0:00:16]}  Nxe2 {[%clk 0:00:33]} 0-1


[Site "https://www.chess.com"]

[Event "Titled Tuesday Blitz May 10 Early 2022"]
[White "Navalgund, Niranjan"]
[Black "Shimelkov, Vasiliy"]
[WhiteFideId "5030854"]
[BlackFideId "13701630"]
[WhiteElo "2290"]
[BlackElo "2073"]
[Result "1-0"]
[Round "03"]
[TimeControl "180+1"]
[Date "2022.05.11"]
[WhiteClock "0:01:52"]
[BlackClock "0:01:48"]

1. e4 {[%clk 0:03:00]}  c6 {[%clk 0:03:00]} 2. Nc3 {[%clk 0:03:00]}  d5 {[%clk 0:03:00]} 3. Nf3 {[%clk 0:03:01]}  dxe4 {[%clk 0:02:59]} 4. Nxe4 {[%clk 0:03:00]}  Nf6 {[%clk 0:03:00]} 5. Qe2 {[%clk 0:02:45]}  Nxe4 {[%clk 0:02:56]} 6. Qxe4 {[%clk 0:02:46]}  Qd5 {[%clk 0:02:56]} 7. Qh4 {[%clk 0:02:44]}  Bf5 {[%clk 0:02:54]} 8. Be2 {[%clk 0:02:16]}  e6 {[%clk 0:02:38]} 9. O-O {[%clk 0:02:15]}  Be7 {[%clk 0:02:33]} 10. Qg3 {[%clk 0:02:14]}  Bf6 {[%clk 0:02:30]} 11. d4 {[%clk 0:02:10]}  O-O {[%clk 0:02:22]} 12. c4 {[%clk 0:02:03]}  Qd8 {[%clk 0:02:20]} 13. Bf4 {[%clk 0:02:01]}  Bxd4 {[%clk 0:01:53]} 14. Nxd4 {[%clk 0:01:52]}  Qxd4 {[%clk 0:01:48]} 15. Be5 {[%clk 0:01:52]} 1-0


[Site "https://www.chess.com"]

[Event "Titled Tuesday Blitz May 10 Early 2022"]
[White "Nenezic, Marko"]
[Black "Cunjalo, Faris"]
[WhiteFideId "912123"]
[BlackFideId "14410710"]
[WhiteElo "2457"]
[BlackElo "2263"]
[Result "1-0"]
[Round "03"]
[TimeControl "180+1"]
[Date "2022.05.10"]
[WhiteClock "0:00:11"]
[BlackClock "0:00:07"]

1. d4 {[%clk 0:03:00]}  Nf6 {[%clk 0:02:59]} 2. c4 {[%clk 0:03:00]}  c5 {[%clk 0:03:00]} 3. d5 {[%clk 0:02:59]}  e6 {[%clk 0:03:01]} 4. Nc3 {[%clk 0:02:59]}  exd5 {[%clk 0:03:02]} 5. cxd5 {[%clk 0:03:00]}  d6 {[%clk 0:03:02]} 6. e4 {[%clk 0:03:01]}  g6 {[%clk 0:03:03]} 7. f4 {[%clk 0:03:01]}  Bg7 {[%clk 0:03:02]} 8. Bb5+ {[%clk 0:03:02]}  Nfd7 {[%clk 0:03:03]} 9. Nf3 {[%clk 0:03:02]}  a6 {[%clk 0:02:57]} 10. Bd3 {[%clk 0:03:02]}  b5 {[%clk 0:02:57]} 11. a3 {[%clk 0:03:00]}  O-O {[%clk 0:02:55]} 12. O-O {[%clk 0:03:00]}  Re8 {[%clk 0:02:47]} 13. Kh1 {[%clk 0:02:52]}  b4 {[%clk 0:02:21]} 14. axb4 {[%clk 0:02:28]}  cxb4 {[%clk 0:02:19]} 15. Na4 {[%clk 0:02:29]}  a5 {[%clk 0:01:56]} 16. Be3 {[%clk 0:02:18]}  Ba6 {[%clk 0:01:37]} 17. Bd4 {[%clk 0:02:00]}  Nf6 {[%clk 0:01:19]} 18. Re1 {[%clk 0:01:56]}  Bxd3 {[%clk 0:01:04]} 19. Qxd3 {[%clk 0:01:56]}  Nbd7 {[%clk 0:01:05]} 20. Rac1 {[%clk 0:01:48]}  Rc8 {[%clk 0:01:06]} 21. Rc6 {[%clk 0:01:38]}  Qe7 {[%clk 0:00:42]} 22. Rxc8 {[%clk 0:01:17]}  Rxc8 {[%clk 0:00:42]} 23. Kg1 {[%clk 0:01:09]}  Re8 {[%clk 0:00:34]} 24. Nd2 {[%clk 0:01:00]}  Bh6 {[%clk 0:00:32]} 25. Bxf6 {[%clk 0:00:51]}  Nxf6 {[%clk 0:00:32]} 26. g3 {[%clk 0:00:49]}  Bg7 {[%clk 0:00:24]} 27. b3 {[%clk 0:00:46]}  Ng4 {[%clk 0:00:24]} 28. Kg2 {[%clk 0:00:43]}  Qa7 {[%clk 0:00:24]} 29. Re2 {[%clk 0:00:42]}  Nf6 {[%clk 0:00:19]} 30. h3 {[%clk 0:00:42]}  Nd7 {[%clk 0:00:19]} 31. Nc4 {[%clk 0:00:41]}  Nc5 {[%clk 0:00:17]} 32. Nxc5 {[%clk 0:00:38]}  Qxc5 {[%clk 0:00:18]} 33. e5 {[%clk 0:00:38]}  dxe5 {[%clk 0:00:15]} 34. fxe5 {[%clk 0:00:39]}  Rc8 {[%clk 0:00:09]} 35. d6 {[%clk 0:00:35]}  a4 {[%clk 0:00:10]} 36. e6 {[%clk 0:00:26]}  fxe6 {[%clk 0:00:10]} 37. Rxe6 {[%clk 0:00:25]}  Qc6+ {[%clk 0:00:06]} 38. Qe4 {[%clk 0:00:23]}  Qxe4+ {[%clk 0:00:03]} 39. Rxe4 {[%clk 0:00:24]}  Kf7 {[%clk 0:00:04]} 40. bxa4 {[%clk 0:00:20]}  b3 {[%clk 0:00:05]} 41. d7 {[%clk 0:00:13]}  Rd8 {[%clk 0:00:05]} 42. Nd6+ {[%clk 0:00:12]}  Kf6 {[%clk 0:00:06]} 43. Ne8+ {[%clk 0:00:11]}  Kf7 {[%clk 0:00:05]} 44. Nxg7 {[%clk 0:00:11]}  Kxg7 {[%clk 0:00:06]} 45. Rb4 {[%clk 0:00:11]}  Rxd7 {[%clk 0:00:07]} 46. Rxb3 {[%clk 0:00:12]}  Rd2+ {[%clk 0:00:07]} 47. Kf3 {[%clk 0:00:12]}  Ra2 {[%clk 0:00:08]} 48. Rb4 {[%clk 0:00:13]}  Kf6 {[%clk 0:00:09]} 49. h4 {[%clk 0:00:13]}  h5 {[%clk 0:00:06]} 50. Kf4 {[%clk 0:00:13]}  Rf2+ {[%clk 0:00:06]} 51. Ke4 {[%clk 0:00:14]}  Ra2 {[%clk 0:00:05]} 52. Rb6+ {[%clk 0:00:12]}  Kf7 {[%clk 0:00:06]} 53. Rb4 {[%clk 0:00:13]}  Kf6 {[%clk 0:00:06]} 54. Kd5 {[%clk 0:00:12]}  Kf5 {[%clk 0:00:07]} 55. Rf4# {[%clk 0:00:11]} 1-0


[Site "https://www.chess.com"]